[Event "*** SCC Grand Prix: Titled Tuesday Blitz"]
[Site "Chess.com"]
[Date "2020.09.29"]
[Round "1"]
[White "Borsuk_Konstantin"]
[Black "warmoatmeal"]
[Result "1-0"]
[WhiteElo "2576"]
[BlackElo "2266"]
[TimeControl "180+1"]
[EndTime "10:05:02 PDT"]
[Termination "Borsuk_Konstantin won by resignation"]

1. d4 {[%clk 0:03:00.9]} 1... Nf6 {[%clk 0:02:58.2]} 2. c4 {[%clk 0:03:01.4]}
2... e6 {[%clk 0:02:57.6]} 3. Nc3 {[%clk 0:03:02]} 3... Bb4 {[%clk 0:02:51.4]}
4. Qc2 {[%clk 0:03:01.6]} 4... O-O {[%clk 0:02:45.6]} 5. a3 {[%clk 0:03:01]}
5... Bxc3+ {[%clk 0:02:42.9]} 6. Qxc3 {[%clk 0:03:01.9]} 6... b6 {[%clk
0:02:43.1]} 7. Bg5 {[%clk 0:02:59.8]} 7... h6 {[%clk 0:02:37.1]} 8. Bh4 {[%clk
0:02:59.3]} 8... Bb7 {[%clk 0:02:32.7]} 9. f3 {[%clk 0:02:58.7]} 9... d6 {[%clk
0:02:25.1]} 10. e3 {[%clk 0:02:56.3]} 10... Nbd7 {[%clk 0:02:03.5]} 11. Bd3
{[%clk 0:02:51.1]} 11... Qe7 {[%clk 0:01:54.3]} 12. Ne2 {[%clk 0:02:50.3]} 12...
e5 {[%clk 0:01:50.8]} 13. Bf5 {[%clk 0:02:37.1]} 13... exd4 {[%clk 0:01:47.5]}
14. Nxd4 {[%clk 0:02:29.7]} 14... Nc5 {[%clk 0:01:38.8]} 15. Bc2 {[%clk
0:02:19.5]} 15... Rfe8 {[%clk 0:01:34.8]} 16. Nf5 {[%clk 0:02:15.8]} 16... Qe5
{[%clk 0:01:33.4]} 17. Qxe5 {[%clk 0:02:01.3]} 17... dxe5 {[%clk 0:01:32.2]} 18.
Bxf6 {[%clk 0:01:41.7]} 18... gxf6 {[%clk 0:01:33.1]} 19. Nxh6+ {[%clk 0:01:42]}
19... Kf8 {[%clk 0:01:27.5]} 20. b4 {[%clk 0:01:36.1]} 20... Ne6 {[%clk
0:01:25.7]} 21. Kf2 {[%clk 0:01:33.4]} 21... Rad8 {[%clk 0:01:24.2]} 22. Rhd1
{[%clk 0:01:32.4]} 22... Ba6 {[%clk 0:01:23.5]} 23. Bb3 {[%clk 0:01:29.6]} 23...
c5 {[%clk 0:01:20.2]} 24. b5 {[%clk 0:01:29.2]} 24... Bb7 {[%clk 0:01:19]} 25.
Nf5 {[%clk 0:01:28.3]} 25... Rxd1 {[%clk 0:01:15.5]} 26. Rxd1 {[%clk 0:01:27.5]}
26... Rd8 {[%clk 0:01:12.1]} 27. Rxd8+ {[%clk 0:01:26.4]} 27... Nxd8 {[%clk
0:01:13]} 28. Bc2 {[%clk 0:01:21.7]} 28... Ke8 {[%clk 0:01:04.7]} 29. h4 {[%clk
0:01:17.8]} 29... Ne6 {[%clk 0:00:57.3]} 30. Nd6+ {[%clk 0:01:16.6]} 1-0

[Event "*** SCC Grand Prix: Titled Tuesday Blitz"]
[Site "Chess.com"]
[Date "2020.09.29"]
[Round "1"]
[White "Legendinunknown"]
[Black "Playgood28"]
[Result "1-0"]
[WhiteElo "2646"]
[BlackElo "2324"]
[TimeControl "180+1"]
[EndTime "10:05:06 PDT"]
[Termination "Legendinunknown won by resignation"]

1. d4 {[%clk 0:02:59.8]} 1... f5 {[%clk 0:02:59.2]} 2. c4 {[%clk 0:02:59.3]}
2... Nf6 {[%clk 0:02:58.6]} 3. g3 {[%clk 0:02:59.3]} 3... g6 {[%clk 0:02:58.4]}
4. Bg2 {[%clk 0:02:59.1]} 4... Bg7 {[%clk 0:02:58.2]} 5. Nc3 {[%clk 0:02:59.2]}
5... d6 {[%clk 0:02:57.8]} 6. Nf3 {[%clk 0:02:58.5]} 6... O-O {[%clk 0:02:57.3]}
7. O-O {[%clk 0:02:58.5]} 7... c6 {[%clk 0:02:57.1]} 8. d5 {[%clk 0:02:58.1]}
8... e5 {[%clk 0:02:56]} 9. e4 {[%clk 0:02:57.8]} 9... Nxe4 {[%clk 0:02:32.8]}
10. Nxe4 {[%clk 0:02:55.3]} 10... fxe4 {[%clk 0:02:32.7]} 11. Ng5 {[%clk
0:02:55.3]} 11... c5 {[%clk 0:02:31.6]} 12. Bxe4 {[%clk 0:02:50.8]} 12... Na6
{[%clk 0:02:12]} 13. Nxh7 {[%clk 0:02:25.8]} 13... Kxh7 {[%clk 0:02:03.7]} 14.
Qh5+ {[%clk 0:02:25.1]} 14... Kg8 {[%clk 0:02:03.6]} 15. Bxg6 {[%clk 0:02:23.8]}
15... Rf6 {[%clk 0:01:56.4]} 16. Bg5 {[%clk 0:02:12.5]} 16... Bd7 {[%clk
0:01:51.9]} 17. f4 {[%clk 0:02:07]} 17... Be8 {[%clk 0:01:29.9]} 18. Qh7+ {[%clk
0:01:59.9]} 18... Kf8 {[%clk 0:01:28.5]} 19. fxe5 {[%clk 0:01:51.4]} 19... Bxg6
{[%clk 0:00:44.9]} 20. Qxg6 {[%clk 0:01:50.2]} 20... Qe8 {[%clk 0:00:37]} 21.
Qxe8+ {[%clk 0:01:35]} 21... Rxe8 {[%clk 0:00:31.6]} 22. exf6 {[%clk 0:01:35.9]}
22... Bh8 {[%clk 0:00:29.5]} 23. f7 {[%clk 0:01:35.9]} 23... Bd4+ {[%clk
0:00:26.2]} 24. Kh1 {[%clk 0:01:35.5]} 1-0

[Event "*** SCC Grand Prix: Titled Tuesday Blitz"]
[Site "Chess.com"]
[Date "2020.09.29"]
[Round "1"]
[White "Roman_Ovetchkin"]
[Black "SHIVACalypso"]
[Result "1-0"]
[WhiteElo "2673"]
[BlackElo "2345"]
[TimeControl "180+1"]
[EndTime "10:05:12 PDT"]
[Termination "Roman_Ovetchkin won by resignation"]

1. d4 {[%clk 0:03:00.1]} 1... e6 {[%clk 0:02:49.8]} 2. c4 {[%clk 0:02:59.1]}
2... Nf6 {[%clk 0:02:47.4]} 3. Nf3 {[%clk 0:02:58.4]} 3... d5 {[%clk 0:02:46.7]}
4. g3 {[%clk 0:02:58.4]} 4... Be7 {[%clk 0:02:43.1]} 5. Bg2 {[%clk 0:02:58.4]}
5... O-O {[%clk 0:02:43.4]} 6. Qc2 {[%clk 0:02:58.3]} 6... dxc4 {[%clk
0:02:39.2]} 7. Qxc4 {[%clk 0:02:45.2]} 7... a6 {[%clk 0:02:37.9]} 8. Qc2 {[%clk
0:02:37.9]} 8... Bd7 {[%clk 0:02:25.6]} 9. Ne5 {[%clk 0:02:36.5]} 9... Bc6
{[%clk 0:02:20.7]} 10. Nxc6 {[%clk 0:02:35.2]} 10... Nxc6 {[%clk 0:02:21.6]} 11.
e3 {[%clk 0:02:14.7]} 11... Nb4 {[%clk 0:02:14]} 12. Qe2 {[%clk 0:02:01.4]}
12... c6 {[%clk 0:02:12]} 13. O-O {[%clk 0:01:59.9]} 13... a5 {[%clk 0:02:12]}
14. a3 {[%clk 0:01:55.4]} 14... Na6 {[%clk 0:02:11.7]} 15. Nc3 {[%clk
0:01:53.4]} 15... Nd5 {[%clk 0:02:06.2]} 16. Bd2 {[%clk 0:01:46.8]} 16... Bf6
{[%clk 0:01:56.5]} 17. Rfd1 {[%clk 0:01:44.7]} 17... Qc7 {[%clk 0:01:55]} 18.
Rac1 {[%clk 0:01:43.2]} 18... Nxc3 {[%clk 0:01:54.8]} 19. Bxc3 {[%clk 0:01:35]}
19... Rfd8 {[%clk 0:01:36.5]} 20. h4 {[%clk 0:01:34.6]} 20... Rd7 {[%clk
0:01:35.8]} 21. Qe1 {[%clk 0:01:30.3]} 21... a4 {[%clk 0:01:26]} 22. Ba5 {[%clk
0:01:24]} 22... Qd6 {[%clk 0:01:20.7]} 23. Bf3 {[%clk 0:01:20.2]} 23... Re8
{[%clk 0:01:13.3]} 24. Qe2 {[%clk 0:01:17.2]} 24... Nc7 {[%clk 0:01:05.2]} 25.
Bb4 {[%clk 0:01:14.2]} 25... c5 {[%clk 0:01:03.7]} 26. dxc5 {[%clk 0:01:12.8]}
26... Qe7 {[%clk 0:01:01.9]} 27. c6 {[%clk 0:01:08.8]} 27... Rxd1+ {[%clk
0:00:57.1]} 28. Rxd1 {[%clk 0:01:08.8]} 1-0

[Event "*** SCC Grand Prix: Titled Tuesday Blitz"]
[Site "Chess.com"]
[Date "2020.09.29"]
[Round "1"]
[White "teacher4chess"]
[Black "DariaVoit"]
[Result "0-1"]
[WhiteElo "2015"]
[BlackElo "2479"]
[TimeControl "180+1"]
[EndTime "10:05:15 PDT"]
[Termination "DariaVoit won by resignation"]

1. d4 {[%clk 0:03:00.1]} 1... f5 {[%clk 0:02:59.2]} 2. Nc3 {[%clk 0:02:59.5]}
2... Nf6 {[%clk 0:02:59.3]} 3. Bg5 {[%clk 0:02:59]} 3... b6 {[%clk 0:02:58.7]}
4. Bxf6 {[%clk 0:02:58.3]} 4... exf6 {[%clk 0:02:56.1]} 5. e4 {[%clk 0:02:51.5]}
5... fxe4 {[%clk 0:02:55.4]} 6. Nxe4 {[%clk 0:02:49.8]} 6... d5 {[%clk
0:02:55.2]} 7. Qh5+ {[%clk 0:02:38.3]} 7... Ke7 {[%clk 0:02:51.1]} 8. Nc3 {[%clk
0:02:27.8]} 8... c6 {[%clk 0:02:49.5]} 9. O-O-O {[%clk 0:02:25.1]} 9... g6
{[%clk 0:02:49]} 10. Re1+ {[%clk 0:02:21.3]} 10... Kf7 {[%clk 0:02:48.5]} 11.
Qf3 {[%clk 0:02:15.6]} 11... Bh6+ {[%clk 0:02:46.1]} 12. Kb1 {[%clk 0:02:15.1]}
12... Re8 {[%clk 0:02:44.6]} 13. Be2 {[%clk 0:02:03.7]} 13... Bf5 {[%clk
0:02:34.5]} 14. g4 {[%clk 0:01:36.5]} 14... Be4 {[%clk 0:02:32.5]} 15. Nxe4
{[%clk 0:01:36.3]} 15... Rxe4 {[%clk 0:02:33.4]} 16. c3 {[%clk 0:01:12.8]} 16...
Qe7 {[%clk 0:02:27.5]} 17. Nh3 {[%clk 0:01:06]} 17... Bd2 {[%clk 0:02:16.1]} 18.
g5 {[%clk 0:00:41.6]} 18... f5 {[%clk 0:02:10.4]} 19. Nf4 {[%clk 0:00:34.7]}
19... Bxf4 {[%clk 0:02:05.5]} 20. Qh3 {[%clk 0:00:31.5]} 20... Kg7 {[%clk
0:02:01.8]} 21. Qd3 {[%clk 0:00:16.9]} 21... Nd7 {[%clk 0:01:58.9]} 22. h4
{[%clk 0:00:16.2]} 22... Re8 {[%clk 0:01:57.5]} 23. h5 {[%clk 0:00:14.2]} 23...
Rxe2 {[%clk 0:01:57.6]} 24. hxg6 {[%clk 0:00:11.3]} 24... Rxe1+ {[%clk
0:01:56.8]} 25. Rxe1 {[%clk 0:00:10.9]} 25... Qxe1+ {[%clk 0:01:57.7]} 26. Kc2
{[%clk 0:00:10.9]} 26... Qe2+ {[%clk 0:01:58.3]} 27. Qxe2 {[%clk 0:00:10.6]}
27... Rxe2+ {[%clk 0:01:59.2]} 28. Kb3 {[%clk 0:00:09.8]} 28... hxg6 {[%clk
0:01:59.1]} 0-1

[Event "*** SCC Grand Prix: Titled Tuesday Blitz"]
[Site "Chess.com"]
[Date "2020.09.29"]
[Round "1"]
[White "Leo_C"]
[Black "kosya4ok"]
[Result "0-1"]
[WhiteElo "2278"]
[BlackElo "2586"]
[TimeControl "180+1"]
[EndTime "10:05:28 PDT"]
[Termination "kosya4ok won by resignation"]

1. d4 {[%clk 0:02:58.1]} 1... Nf6 {[%clk 0:02:59.4]} 2. c4 {[%clk 0:02:57.9]}
2... e6 {[%clk 0:03:00.3]} 3. Nc3 {[%clk 0:02:54]} 3... Bb4 {[%clk 0:02:59.4]}
4. e3 {[%clk 0:02:53.6]} 4... O-O {[%clk 0:02:53.2]} 5. Bd3 {[%clk 0:02:49.5]}
5... d5 {[%clk 0:02:53.1]} 6. cxd5 {[%clk 0:02:49.2]} 6... exd5 {[%clk
0:02:51.8]} 7. Ne2 {[%clk 0:02:49.6]} 7... c5 {[%clk 0:02:51.8]} 8. a3 {[%clk
0:02:48]} 8... cxd4 {[%clk 0:02:50.7]} 9. axb4 {[%clk 0:02:47]} 9... dxc3 {[%clk
0:02:50.4]} 10. bxc3 {[%clk 0:02:46.8]} 10... Nc6 {[%clk 0:02:49.7]} 11. O-O
{[%clk 0:02:45.6]} 11... Ne5 {[%clk 0:02:49.4]} 12. Ng3 {[%clk 0:02:42.9]} 12...
Be6 {[%clk 0:02:46.7]} 13. Bf5 {[%clk 0:02:28]} 13... Qc8 {[%clk 0:02:36.1]} 14.
Bxe6 {[%clk 0:02:23]} 14... Qxe6 {[%clk 0:02:37]} 15. Qe2 {[%clk 0:02:06.5]}
15... Rfc8 {[%clk 0:02:35.1]} 16. e4 {[%clk 0:02:02.5]} 16... Nc4 {[%clk
0:01:38.9]} 17. exd5 {[%clk 0:01:51.4]} 17... Nxd5 {[%clk 0:01:39]} 18. Qxe6
{[%clk 0:01:49.9]} 18... fxe6 {[%clk 0:01:39.9]} 19. Re1 {[%clk 0:01:45.2]}
19... Rc6 {[%clk 0:01:34.9]} 20. b5 {[%clk 0:01:42.3]} 20... Rb6 {[%clk
0:01:33.5]} 21. Bg5 {[%clk 0:01:23.7]} 21... h6 {[%clk 0:01:31.9]} 22. Be3
{[%clk 0:01:15.9]} 22... Ndxe3 {[%clk 0:01:27.8]} 23. fxe3 {[%clk 0:01:16.8]}
23... Rxb5 {[%clk 0:01:28.2]} 24. Reb1 {[%clk 0:01:07.5]} 24... Rxb1+ {[%clk
0:01:23.8]} 25. Rxb1 {[%clk 0:01:07.3]} 25... b6 {[%clk 0:01:24.7]} 26. Rb4
{[%clk 0:01:03.4]} 26... Rc8 {[%clk 0:01:23.8]} 27. Kf2 {[%clk 0:01:01.1]} 27...
Nd6 {[%clk 0:01:12.8]} 28. Ra4 {[%clk 0:00:55.2]} 28... a5 {[%clk 0:01:12.4]}
29. Ra3 {[%clk 0:00:55.4]} 29... Nc4 {[%clk 0:01:07.8]} 30. Rb3 {[%clk
0:00:54.1]} 30... a4 {[%clk 0:01:01.9]} 0-1

[Event "*** SCC Grand Prix: Titled Tuesday Blitz"]
[Site "Chess.com"]
[Date "2020.09.29"]
[Round "1"]
[White "chessmaGIA"]
[Black "oganromchess"]
[Result "0-1"]
[WhiteElo "1618"]
[BlackElo "2460"]
[TimeControl "180+1"]
[EndTime "10:05:30 PDT"]
[Termination "oganromchess won by resignation"]

1. d4 {[%clk 0:02:58.6]} 1... f5 {[%clk 0:02:59.2]} 2. c4 {[%clk 0:02:55]} 2...
Nf6 {[%clk 0:02:58.9]} 3. Nc3 {[%clk 0:02:55]} 3... e6 {[%clk 0:02:59.1]} 4. Nf3
{[%clk 0:02:51.8]} 4... Be7 {[%clk 0:02:59]} 5. Bf4 {[%clk 0:02:48.4]} 5... O-O
{[%clk 0:02:56]} 6. e3 {[%clk 0:02:48.7]} 6... b6 {[%clk 0:02:55.7]} 7. Bd3
{[%clk 0:02:48.4]} 7... Bb7 {[%clk 0:02:55.9]} 8. O-O {[%clk 0:02:46.1]} 8...
Qe8 {[%clk 0:02:55.6]} 9. Qe2 {[%clk 0:02:44.7]} 9... d6 {[%clk 0:02:44.9]} 10.
e4 {[%clk 0:02:42.1]} 10... fxe4 {[%clk 0:02:44]} 11. Nxe4 {[%clk 0:02:41.4]}
11... Nxe4 {[%clk 0:02:35.9]} 12. Bxe4 {[%clk 0:02:42.3]} 12... d5 {[%clk
0:02:25.4]} 13. cxd5 {[%clk 0:02:26.1]} 13... Rxf4 {[%clk 0:02:23]} 14. Bd3
{[%clk 0:02:19.8]} 14... Bxd5 {[%clk 0:02:17.7]} 15. Ne5 {[%clk 0:02:18.9]}
15... Nc6 {[%clk 0:01:53.9]} 16. Rac1 {[%clk 0:02:15.6]} 16... Nxd4 {[%clk
0:01:34.4]} 17. Qe3 {[%clk 0:02:10.5]} 17... Bg5 {[%clk 0:01:32.2]} 18. Qg3
{[%clk 0:01:49.2]} 18... Qh5 {[%clk 0:01:21.8]} 19. Rfe1 {[%clk 0:01:39.5]}
19... c5 {[%clk 0:01:12.9]} 20. h3 {[%clk 0:00:58.8]} 20... Raf8 {[%clk
0:01:09]} 21. Rf1 {[%clk 0:00:53.5]} 21... Rh4 {[%clk 0:01:04.8]} 22. Nf3 {[%clk
0:00:43.6]} 22... Nxf3+ {[%clk 0:00:58.6]} 0-1

[Event "*** SCC Grand Prix: Titled Tuesday Blitz"]
[Site "Chess.com"]
[Date "2020.09.29"]
[Round "1"]
[White "BJthechessgod"]
[Black "keepitcool9499"]
[Result "0-1"]
[WhiteElo "2303"]
[BlackElo "2624"]
[TimeControl "180+1"]
[EndTime "10:05:34 PDT"]
[Termination "keepitcool9499 won by checkmate"]

1. e4 {[%clk 0:03:00.9]} 1... e6 {[%clk 0:03:00.9]} 2. d4 {[%clk 0:03:00.8]}
2... d5 {[%clk 0:02:41]} 3. Nc3 {[%clk 0:03:00.4]} 3... Nf6 {[%clk 0:02:39.9]}
4. e5 {[%clk 0:02:59.4]} 4... Nfd7 {[%clk 0:02:39.7]} 5. f4 {[%clk 0:03:00.3]}
5... c5 {[%clk 0:02:40.3]} 6. Be3 {[%clk 0:02:59.6]} 6... Nc6 {[%clk 0:02:40.9]}
7. Nf3 {[%clk 0:02:58.8]} 7... a6 {[%clk 0:02:41.5]} 8. Qd2 {[%clk 0:02:57.1]}
8... b5 {[%clk 0:02:41.8]} 9. a3 {[%clk 0:02:55.3]} 9... Qb6 {[%clk 0:02:39.6]}
10. Be2 {[%clk 0:02:53.9]} 10... cxd4 {[%clk 0:02:38.5]} 11. Nxd4 {[%clk
0:02:26.4]} 11... Bc5 {[%clk 0:02:38.1]} 12. Nxc6 {[%clk 0:01:34.4]} 12... Bxe3
{[%clk 0:02:32.5]} 13. Qd3 {[%clk 0:01:33.1]} 13... Bxf4 {[%clk 0:02:19.3]} 14.
Rf1 {[%clk 0:01:17.8]} 14... Nxe5 {[%clk 0:02:03]} 15. Nxe5 {[%clk 0:01:15.5]}
15... Bxe5 {[%clk 0:02:03.9]} 16. O-O-O {[%clk 0:01:11.7]} 16... O-O {[%clk
0:02:02]} 17. Kb1 {[%clk 0:00:57.6]} 17... b4 {[%clk 0:01:59.3]} 18. axb4 {[%clk
0:00:57.2]} 18... Qxb4 {[%clk 0:01:58.4]} 19. Bf3 {[%clk 0:00:41.2]} 19... Bd7
{[%clk 0:01:50.6]} 20. Rfe1 {[%clk 0:00:23.3]} 20... Bf6 {[%clk 0:01:45.2]} 21.
Kc1 {[%clk 0:00:15.8]} 21... Rab8 {[%clk 0:01:40.8]} 22. Kd2 {[%clk 0:00:16.3]}
22... Qxb2 {[%clk 0:01:39.6]} 23. Rb1 {[%clk 0:00:15.3]} 23... Qxc3+ {[%clk
0:01:39.7]} 24. Qxc3 {[%clk 0:00:15.1]} 24... Bxc3+ {[%clk 0:01:40.4]} 25. Kxc3
{[%clk 0:00:16]} 25... Rfc8+ {[%clk 0:01:37.3]} 26. Kd3 {[%clk 0:00:15.4]} 26...
Bb5+ {[%clk 0:01:37.2]} 27. Kd4 {[%clk 0:00:15.1]} 27... Rc4+ {[%clk 0:01:36]}
28. Ke5 {[%clk 0:00:15.4]} 28... Kf8 {[%clk 0:01:31.8]} 29. Rbd1 {[%clk
0:00:10.8]} 29... Ke7 {[%clk 0:01:30.6]} 30. Bxd5 {[%clk 0:00:08.6]} 30... f6#
{[%clk 0:01:30.1]} 0-1

[Event "*** SCC Grand Prix: Titled Tuesday Blitz"]
[Site "Chess.com"]
[Date "2020.09.29"]
[Round "1"]
[White "Radzio1987"]
[Black "Nikithebest"]
[Result "1-0"]
[WhiteElo "2851"]
[BlackElo "2419"]
[TimeControl "180+1"]
[EndTime "10:05:36 PDT"]
[Termination "Radzio1987 won by resignation"]

1. c4 {[%clk 0:02:57.6]} 1... c5 {[%clk 0:02:58]} 2. g3 {[%clk 0:02:57]} 2...
Nc6 {[%clk 0:02:56.5]} 3. Bg2 {[%clk 0:02:57.6]} 3... g6 {[%clk 0:02:56.9]} 4.
Nc3 {[%clk 0:02:57.6]} 4... Bg7 {[%clk 0:02:55.7]} 5. b3 {[%clk 0:02:58.2]} 5...
d6 {[%clk 0:02:55.8]} 6. Bb2 {[%clk 0:02:57.1]} 6... Bf5 {[%clk 0:02:52]} 7. d3
{[%clk 0:02:54.6]} 7... Qd7 {[%clk 0:02:51.4]} 8. h3 {[%clk 0:02:53.9]} 8... h5
{[%clk 0:02:50.9]} 9. Nf3 {[%clk 0:02:47.1]} 9... Nd4 {[%clk 0:02:38.3]} 10. Ng5
{[%clk 0:02:25.5]} 10... Nh6 {[%clk 0:02:00.3]} 11. Qd2 {[%clk 0:02:22.7]} 11...
f6 {[%clk 0:01:47.8]} 12. Nge4 {[%clk 0:02:18]} 12... Be6 {[%clk 0:01:43.3]} 13.
e3 {[%clk 0:02:09.7]} 13... Nc6 {[%clk 0:01:43.1]} 14. d4 {[%clk 0:02:01.1]}
14... cxd4 {[%clk 0:01:35.9]} 15. exd4 {[%clk 0:02:02]} 15... Bf5 {[%clk
0:01:31.6]} 16. d5 {[%clk 0:01:58.8]} 16... Ne5 {[%clk 0:01:26.5]} 17. f4 {[%clk
0:01:49.4]} 17... Nef7 {[%clk 0:01:26.2]} 18. Nb5 {[%clk 0:01:43.5]} 18... O-O
{[%clk 0:01:25.7]} 19. Nd4 {[%clk 0:01:42.4]} 19... g5 {[%clk 0:01:20]} 20. fxg5
{[%clk 0:01:33.7]} 20... fxg5 {[%clk 0:01:13.1]} 21. Nxg5 {[%clk 0:01:24]} 21...
Ne5 {[%clk 0:00:34.3]} 22. O-O {[%clk 0:01:20.6]} 22... Nd3 {[%clk 0:00:29.1]}
23. Nxf5 {[%clk 0:01:12.5]} 23... Nxb2 {[%clk 0:00:20]} 24. Nxg7 {[%clk
0:01:10.8]} 24... Rf7 {[%clk 0:00:17.8]} 1-0

[Event "*** SCC Grand Prix: Titled Tuesday Blitz"]
[Site "Chess.com"]
[Date "2020.09.29"]
[Round "1"]
[White "novocane"]
[Black "xberli"]
[Result "0-1"]
[WhiteElo "2296"]
[BlackElo "2606"]
[TimeControl "180+1"]
[EndTime "10:05:37 PDT"]
[Termination "xberli won by resignation"]

1. d4 {[%clk 0:03:00.7]} 1... Nf6 {[%clk 0:02:59.2]} 2. c4 {[%clk 0:02:59.8]}
2... g6 {[%clk 0:02:59.3]} 3. Nc3 {[%clk 0:02:59]} 3... d5 {[%clk 0:02:59.8]} 4.
cxd5 {[%clk 0:02:57.5]} 4... Nxd5 {[%clk 0:03:00.7]} 5. e4 {[%clk 0:02:57.8]}
5... Nxc3 {[%clk 0:03:01.2]} 6. bxc3 {[%clk 0:02:58.2]} 6... Bg7 {[%clk
0:03:02.1]} 7. Qa4+ {[%clk 0:02:57.7]} 7... Nd7 {[%clk 0:03:00.9]} 8. Nf3 {[%clk
0:02:55.2]} 8... O-O {[%clk 0:03:00.9]} 9. Qa3 {[%clk 0:02:40.5]} 9... c5 {[%clk
0:03:00]} 10. Be3 {[%clk 0:02:37.2]} 10... Qc7 {[%clk 0:02:57.3]} 11. Bd3 {[%clk
0:02:31.5]} 11... a6 {[%clk 0:02:57.1]} 12. O-O {[%clk 0:02:26.6]} 12... b5
{[%clk 0:02:56.7]} 13. Rac1 {[%clk 0:02:24.1]} 13... Bb7 {[%clk 0:02:54.9]} 14.
Rfe1 {[%clk 0:01:40.2]} 14... Rac8 {[%clk 0:02:47.9]} 15. Bb1 {[%clk 0:01:35.1]}
15... e5 {[%clk 0:02:37.1]} 16. d5 {[%clk 0:01:31]} 16... c4 {[%clk 0:02:36]}
17. Rcd1 {[%clk 0:01:12.1]} 17... Rfe8 {[%clk 0:02:30.5]} 18. Qc1 {[%clk
0:01:05.6]} 18... Qd6 {[%clk 0:02:26.4]} 19. Bh6 {[%clk 0:01:04.5]} 19... Bh8
{[%clk 0:02:24.9]} 20. Qe3 {[%clk 0:00:54.1]} 20... a5 {[%clk 0:02:22.4]} 21.
Qa7 {[%clk 0:00:40.1]} 21... Qb6 {[%clk 0:02:11.5]} 22. Qxb6 {[%clk 0:00:39.2]}
22... Nxb6 {[%clk 0:02:12.4]} 23. d6 {[%clk 0:00:34.7]} 23... Red8 {[%clk
0:02:09.7]} 24. Rd2 {[%clk 0:00:23.4]} 24... Na4 {[%clk 0:02:04.7]} 25. Rc1
{[%clk 0:00:22.2]} 25... Rd7 {[%clk 0:02:01.5]} 26. Be3 {[%clk 0:00:08]} 26...
Rc6 {[%clk 0:01:55.2]} 27. Bc2 {[%clk 0:00:07.1]} 27... Nxc3 {[%clk 0:01:51.3]}
28. Bg5 {[%clk 0:00:06.4]} 28... Rcxd6 {[%clk 0:01:47.8]} 29. Rxd6 {[%clk
0:00:04.6]} 29... Rxd6 {[%clk 0:01:48.7]} 30. Be7 {[%clk 0:00:04.9]} 30... Rd7
{[%clk 0:01:47.5]} 31. Bc5 {[%clk 0:00:04.4]} 31... Ne2+ {[%clk 0:01:46.6]} 0-1

[Event "*** SCC Grand Prix: Titled Tuesday Blitz"]
[Site "Chess.com"]
[Date "2020.09.29"]
[Round "1"]
[White "THE_PLAYER6"]
[Black "JiiHart"]
[Result "1-0"]
[WhiteElo "2485"]
[BlackElo "2062"]
[TimeControl "180+1"]
[EndTime "10:05:40 PDT"]
[Termination "THE_PLAYER6 won by resignation"]

1. c4 {[%clk 0:02:55.4]} 1... e5 {[%clk 0:02:58.6]} 2. a3 {[%clk 0:02:53.5]}
2... Nf6 {[%clk 0:02:57]} 3. d3 {[%clk 0:02:53.4]} 3... d5 {[%clk 0:02:56.2]} 4.
cxd5 {[%clk 0:02:54.3]} 4... Nxd5 {[%clk 0:02:55.6]} 5. Nf3 {[%clk 0:02:54.8]}
5... Nc6 {[%clk 0:02:54.4]} 6. e4 {[%clk 0:02:48.7]} 6... Nf6 {[%clk 0:02:46.1]}
7. Be3 {[%clk 0:02:45]} 7... Be7 {[%clk 0:02:44.5]} 8. Be2 {[%clk 0:02:42.6]}
8... O-O {[%clk 0:02:43.6]} 9. O-O {[%clk 0:02:43]} 9... Bg4 {[%clk 0:02:39.5]}
10. h3 {[%clk 0:02:39.4]} 10... Bxf3 {[%clk 0:02:39.2]} 11. Bxf3 {[%clk
0:02:40.3]} 11... Nd4 {[%clk 0:02:38.6]} 12. Nd2 {[%clk 0:02:39.4]} 12... b5
{[%clk 0:02:10.5]} 13. Rc1 {[%clk 0:02:35]} 13... c5 {[%clk 0:01:58.8]} 14. Be2
{[%clk 0:02:30.4]} 14... a5 {[%clk 0:01:47.5]} 15. Nf3 {[%clk 0:02:30]} 15...
Nxf3+ {[%clk 0:01:38.1]} 16. Bxf3 {[%clk 0:02:29.8]} 16... Rc8 {[%clk
0:01:38.4]} 17. Be2 {[%clk 0:02:28.4]} 17... Qd7 {[%clk 0:01:35.7]} 18. Bg5
{[%clk 0:02:18.9]} 18... Rfd8 {[%clk 0:01:31.5]} 19. Bxf6 {[%clk 0:02:18.9]}
19... Bxf6 {[%clk 0:01:31.3]} 20. Bg4 {[%clk 0:02:19.1]} 20... Qd4 {[%clk
0:01:19.3]} 21. Bxc8 {[%clk 0:02:18]} 21... Rxc8 {[%clk 0:01:20.2]} 22. Qb3
{[%clk 0:02:17.8]} 22... Rb8 {[%clk 0:01:09.6]} 23. Qc3 {[%clk 0:02:14.7]} 23...
Qxc3 {[%clk 0:00:59.8]} 24. Rxc3 {[%clk 0:02:15.6]} 24... Be7 {[%clk 0:01:00]}
25. Rfc1 {[%clk 0:02:14.9]} 25... f6 {[%clk 0:00:54.9]} 26. Rxc5 {[%clk
0:02:04.4]} 26... Bxc5 {[%clk 0:00:54.1]} 27. Rxc5 {[%clk 0:02:05.3]} 27... Kf7
{[%clk 0:00:47.5]} 28. Kf1 {[%clk 0:02:04.5]} 28... Ke6 {[%clk 0:00:46.1]} 29.
Ke2 {[%clk 0:02:02.6]} 29... Kd6 {[%clk 0:00:46]} 30. Rc2 {[%clk 0:02:01.1]}
30... b4 {[%clk 0:00:43.2]} 31. a4 {[%clk 0:02:00.4]} 31... g6 {[%clk
0:00:36.2]} 32. b3 {[%clk 0:01:50.5]} 32... f5 {[%clk 0:00:35.7]} 33. f3 {[%clk
0:01:50.2]} 33... Rf8 {[%clk 0:00:29.9]} 34. Rc4 {[%clk 0:01:49.6]} 34... Re8
{[%clk 0:00:25.8]} 35. Ke3 {[%clk 0:01:48.3]} 35... f4+ {[%clk 0:00:24.5]} 36.
Ke2 {[%clk 0:01:48.1]} 36... g5 {[%clk 0:00:25.1]} 37. d4 {[%clk 0:01:47.8]}
37... exd4 {[%clk 0:00:24.1]} 38. Rxd4+ {[%clk 0:01:47.8]} 38... Kc6 {[%clk
0:00:23.6]} 39. Rd5 {[%clk 0:01:46.7]} 1-0